[Event "Jeux du Barreau 2019"]
[Site "Paris, France"]
[Date "2019.07.10"]
[Round "4.4"]
[White "Sainson, Michael"]
[Black "Rachid, Danial"]
[Result "1-0"]
[TimeControl "15+3"]
[WhiteElo "1584"]
[BlackElo "2020"]

1. e4 {[%clk 00:15:05]} e6 {[%clk 00:15:05]} {[%emt 00:00:02]} 2. d4 {[%clk
00:15:07]} {[%emt 00:00:01]} d5 {[%clk 00:15:07]} {[%emt 00:00:01]} 3. Nd2
{[%clk 00:15:07]} {[%emt 00:00:03]} Nf6 {[%clk 00:15:00]} {[%emt 00:00:10]} 4.
e5 {[%clk 00:15:04]} {[%emt 00:00:06]} Nfd7 {[%clk 00:15:01]} {[%emt 00:00:01]}
5. Ngf3 {[%clk 00:15:05]} {[%emt 00:00:02]} c5 {[%clk 00:15:03]} {[%emt
00:00:01]} 6. c3 {[%clk 00:15:07]} Nc6 {[%clk 00:15:05]} {[%emt 00:00:01]} 7.
Bb5 {[%clk 00:15:07]} {[%emt 00:00:03]} cxd4 {[%clk 00:15:03]} {[%emt
00:00:05]} 8. cxd4 {[%clk 00:15:04]} {[%emt 00:00:06]} Qb6 {[%clk 00:15:04]}
{[%emt 00:00:02]} 9. Bxc6 {[%clk 00:14:55]} {[%emt 00:00:11]} bxc6 {[%clk
00:15:05]} {[%emt 00:00:02]} 10. O-O {[%clk 00:14:39]} {[%emt 00:00:19]} c5
{[%clk 00:15:04]} {[%emt 00:00:04]} 11. dxc5 {[%clk 00:14:06]} {[%emt
00:00:36]} Bxc5 {[%clk 00:15:03]} {[%emt 00:00:04]} 12. Nb3 {[%clk 00:13:59]}
{[%emt 00:00:11]} Ba6 {[%clk 00:13:08]} {[%emt 00:01:58]} 13. Nxc5 {[%clk
00:13:42]} {[%emt 00:00:19]} Bxf1 {[%clk 00:13:00]} {[%emt 00:00:11]} 14. Nxd7
{[%clk 00:13:34]} {[%emt 00:00:11]} Kxd7 {[%clk 00:13:02]} {[%emt 00:00:02]} 15.
Kxf1 {[%clk 00:13:08]} {[%emt 00:00:27]} Rac8 {[%clk 00:12:37]} {[%emt
00:00:28]} 16. Be3 {[%clk 00:12:02]} {[%emt 00:01:09]} Qb5+ {[%clk 00:12:26]}
{[%emt 00:00:11]} 17. Kg1 {[%clk 00:12:01]} {[%emt 00:00:07]} Rc7 {[%clk
00:11:55]} {[%emt 00:00:34]} 18. Rc1 {[%clk 00:11:05]} {[%emt 00:00:59]} Rhc8
{[%clk 00:11:54]} {[%emt 00:00:03]} 19. Rxc7+ {[%emt 00:00:08]} Rxc7 {[%emt
00:00:02]} 20. b3 {[%clk 00:10:16]} {[%emt 00:00:46]} h6 {[%clk 00:11:35]}
{[%emt 00:00:25]} 21. h3 {[%clk 00:09:58]} {[%emt 00:00:21]} Qa5 {[%clk
00:11:28]} {[%emt 00:00:10]} 22. a4 {[%clk 00:09:39]} {[%emt 00:00:22]} Qb4
{[%clk 00:11:11]} {[%emt 00:00:19]} 23. Nd4 {[%clk 00:09:06]} {[%emt 00:00:37]}
h5 {[%clk 00:09:58]} {[%emt 00:01:15]} 24. Qxh5 {[%clk 00:08:13]} {[%emt
00:00:55]} Ke8 {[%clk 00:09:22]} {[%emt 00:00:40]} 25. Qh8+ {[%clk 00:07:47]}
{[%emt 00:00:30]} Qf8 {[%clk 00:09:20]} {[%emt 00:00:04]} 26. Qxf8+ {[%clk
00:07:40]} {[%emt 00:00:10]} Kxf8 {[%clk 00:09:22]} {[%emt 00:00:01]} 27. Nb5
{[%clk 00:07:05]} {[%emt 00:00:38]} Rb7 {[%clk 00:08:56]} {[%emt 00:00:29]} 28.
Bxa7 {[%clk 00:06:59]} {[%emt 00:00:09]} f6 {[%clk 00:08:58]} 29. Bc5+ {[%clk
00:06:43]} {[%emt 00:00:18]} Kg8 {[%clk 00:08:55]} {[%emt 00:00:05]} 30. Bd4
{[%clk 00:05:27]} {[%emt 00:01:20]} fxe5 {[%clk 00:08:48]} {[%emt 00:00:11]} 31.
Bxe5 {[%clk 00:05:28]} {[%emt 00:00:02]} Rb6 {[%clk 00:08:42]} {[%emt
00:00:09]} 32. f4 {[%clk 00:05:13]} {[%emt 00:00:18]} Rc6 {[%clk 00:08:43]}
{[%emt 00:00:02]} 33. Kf2 {[%clk 00:04:33]} {[%emt 00:00:43]} Rc2+ {[%clk
00:08:38]} {[%emt 00:00:08]} 34. Kf3 {[%clk 00:04:30]} {[%emt 00:00:06]} Kf7
{[%clk 00:08:36]} {[%emt 00:00:06]} 35. Nd4 {[%clk 00:03:14]} {[%emt 00:01:19]}
Ra2 {[%clk 00:08:28]} {[%emt 00:00:11]} 36. Nc6 {[%clk 00:02:55]} {[%emt
00:00:22]} Ra3 {[%clk 00:08:20]} {[%emt 00:00:11]} 37. Nd4 {[%clk 00:02:51]}
{[%emt 00:00:08]} Ke8 {[%clk 00:08:15]} {[%emt 00:00:08]} 38. Bxg7 {[%clk
00:02:48]} {[%emt 00:00:06]} 1-0

[Event "Jeux du Barreau 2019"]
[Site "Paris, France"]
[Date "2019.07.10"]
[Round "4.5"]
[White "Spirta, Boris"]
[Black "Levy, David"]
[Result "0-1"]
[TimeControl "15+3"]
[WhiteElo "1811"]
[BlackElo "1511"]

1. e4 {[%clk 00:15:04]} {[%emt 00:00:01]} c6 {[%clk 00:15:04]} {[%emt
00:00:02]} 2. d4 {[%clk 00:15:04]} {[%emt 00:00:03]} d5 {[%clk 00:15:05]}
{[%emt 00:00:02]} 3. exd5 {[%clk 00:15:06]} {[%emt 00:00:02]} Qxd5 {[%clk
00:15:06]} {[%emt 00:00:02]} 4. c4 {[%clk 00:14:55]} {[%emt 00:00:13]} Qa5+
{[%clk 00:15:07]} {[%emt 00:00:02]} 5. Nc3 {[%clk 00:13:29]} {[%emt 00:01:29]}
Nf6 {[%clk 00:15:09]} {[%emt 00:00:02]} 6. Bd3 {[%clk 00:12:24]} {[%emt
00:01:08]} Bg4 {[%clk 00:15:10]} {[%emt 00:00:02]} 7. f3 {[%clk 00:11:47]}
{[%emt 00:00:40]} Bh5 {[%clk 00:15:12]} 8. Nge2 {[%clk 00:10:50]} {[%emt
00:01:00]} e6 {[%clk 00:15:12]} {[%emt 00:00:04]} 9. a3 {[%clk 00:09:11]}
{[%emt 00:01:42]} Nbd7 {[%clk 00:14:54]} {[%emt 00:00:21]} 10. O-O {[%clk
00:08:24]} {[%emt 00:00:49]} Bd6 {[%clk 00:14:56]} {[%emt 00:00:02]} 11. c5
{[%clk 00:08:10]} {[%emt 00:00:17]} Be7 {[%clk 00:14:58]} {[%emt 00:00:01]} 12.
Bf4 {[%clk 00:07:30]} {[%emt 00:00:41]} O-O {[%clk 00:14:54]} {[%emt 00:00:09]}
13. b4 {[%clk 00:07:31]} {[%emt 00:00:02]} Qd8 {[%clk 00:14:56]} {[%emt
00:00:01]} 14. Ng3 {[%clk 00:06:43]} {[%emt 00:00:52]} Bg6 {[%clk 00:14:58]}
{[%emt 00:00:01]} 15. Nge4 {[%emt 00:02:26]} Nxe4 {[%emt 00:00:02]} 16. Bxe4
{[%clk 00:03:56]} {[%emt 00:00:26]} Nf6 {[%clk 00:15:00]} {[%emt 00:00:03]} 17.
Bxg6 {[%clk 00:03:30]} {[%emt 00:00:28]} hxg6 {[%clk 00:15:02]} {[%emt
00:00:01]} 18. Qd2 {[%clk 00:01:49]} {[%emt 00:01:44]} Nd5 {[%clk 00:14:58]}
{[%emt 00:00:07]} 19. Nxd5 {[%clk 00:01:50]} {[%emt 00:00:02]} Qxd5 {[%clk
00:14:59]} {[%emt 00:00:02]} 20. Rae1 {[%clk 00:01:36]} {[%emt 00:00:16]} Rad8
{[%clk 00:15:00]} {[%emt 00:00:02]} 21. Re5 {[%clk 00:01:37]} {[%emt 00:00:02]}
Qxd4+ {[%clk 00:14:45]} {[%emt 00:00:19]} 22. Qxd4 {[%clk 00:01:27]} {[%emt
00:00:13]} Rxd4 {[%clk 00:14:46]} {[%emt 00:00:02]} 23. Bg3 {[%clk 00:01:21]}
{[%emt 00:00:09]} Rfd8 {[%clk 00:14:37]} {[%emt 00:00:12]} 24. Re3 {[%clk
00:01:13]} {[%emt 00:00:10]} Rd3 {[%clk 00:14:32]} {[%emt 00:00:09]} 25. Rxd3
{[%clk 00:01:05]} {[%emt 00:00:12]} Rxd3 {[%clk 00:14:33]} {[%emt 00:00:02]} 26.
Ra1 {[%clk 00:00:50]} {[%emt 00:00:19]} Bf6 {[%clk 00:14:34]} {[%emt 00:00:02]}
27. Ra2 {[%clk 00:00:51]} {[%emt 00:00:02]} Kf8 {[%clk 00:14:24]} {[%emt
00:00:13]} 28. Bd6+ {[%clk 00:00:52]} {[%emt 00:00:01]} Be7 {[%clk 00:14:24]}
{[%emt 00:00:02]} 29. Bg3 {[%clk 00:00:52]} {[%emt 00:00:04]} Ke8 {[%clk
00:14:25]} {[%emt 00:00:01]} 30. Kf2 {[%clk 00:00:52]} {[%emt 00:00:03]} Kd7
{[%clk 00:14:26]} {[%emt 00:00:02]} 31. Ke2 {[%clk 00:00:54]} Rd5 {[%clk
00:14:28]} {[%emt 00:00:01]} 32. a4 {[%clk 00:00:50]} {[%emt 00:00:08]} Bd8
{[%clk 00:14:26]} {[%emt 00:00:05]} 33. Bf2 {[%clk 00:00:36]} {[%emt 00:00:17]}
Bc7 {[%clk 00:14:27]} {[%emt 00:00:02]} 34. h3 {[%clk 00:00:37]} {[%emt
00:00:01]} a6 {[%clk 00:12:42]} {[%emt 00:01:48]} 35. Ke3 {[%clk 00:00:26]}
{[%emt 00:00:14]} Bd8 {[%clk 00:12:45]} {[%emt 00:00:01]} 36. g4 {[%clk
00:00:26]} {[%emt 00:00:02]} Bf6 {[%clk 00:12:44]} {[%emt 00:00:04]} 37. Ke2
{[%clk 00:00:15]} {[%emt 00:00:13]} Bc3 {[%clk 00:12:32]} {[%emt 00:00:16]} 38.
b5 {[%clk 00:00:15]} {[%emt 00:00:04]} axb5 {[%clk 00:12:31]} {[%emt 00:00:04]}
39. axb5 {[%clk 00:00:16]} {[%emt 00:00:01]} cxb5 {[%clk 00:12:24]} {[%emt
00:00:10]} 40. Ra7 {[%clk 00:00:16]} {[%emt 00:00:03]} Kc6 {[%clk 00:12:24]}
{[%emt 00:00:02]} 41. Ra8 {[%clk 00:00:15]} {[%emt 00:00:05]} b4 {[%clk
00:12:19]} {[%emt 00:00:08]} 42. Ra2 {[%emt 00:00:14]} 0-1

[Event "Jeux du Barreau 2019"]
[Site "Paris, France"]
[Date "2019.07.10"]
[Round "4.6"]
[White "Constant, Arnaud"]
[Black "Gautier, Joel"]
[Result "0-1"]
[TimeControl "15+3"]
[WhiteElo "1399"]
[BlackElo "1975"]

1. e4 {[%clk 00:15:05]} e6 {[%clk 00:15:05]} {[%emt 00:00:02]} 2. Nf3 {[%clk
00:15:06]} {[%emt 00:00:02]} d5 {[%clk 00:15:06]} {[%emt 00:00:01]} 3. Nc3
{[%clk 00:15:06]} {[%emt 00:00:03]} Nf6 {[%clk 00:14:57]} {[%emt 00:00:12]} 4.
d4 {[%clk 00:14:36]} {[%emt 00:00:34]} dxe4 {[%clk 00:14:39]} {[%emt 00:00:21]}
5. Ne5 {[%clk 00:14:36]} {[%emt 00:00:02]} Bb4 {[%clk 00:14:16]} {[%emt
00:00:27]} 6. Bd2 {[%clk 00:14:24]} {[%emt 00:00:15]} Qxd4 {[%clk 00:13:57]}
{[%emt 00:00:22]} 7. Nc4 {[%clk 00:12:55]} {[%emt 00:01:31]} O-O {[%clk
00:13:41]} {[%emt 00:00:19]} 8. Be3 {[%clk 00:11:18]} {[%emt 00:01:40]} Bxc3+
{[%clk 00:13:36]} {[%emt 00:00:09]} 9. bxc3 {[%emt 00:00:28]} Qd5 {[%emt
00:01:06]} 10. Be2 {[%clk 00:09:19]} {[%emt 00:00:28]} Nc6 {[%clk 00:13:18]}
{[%emt 00:00:22]} 11. O-O {[%clk 00:09:17]} {[%emt 00:00:04]} Qxd1 {[%clk
00:13:12]} {[%emt 00:00:09]} 12. Raxd1 {[%clk 00:09:15]} {[%emt 00:00:06]} h6
{[%clk 00:12:54]} {[%emt 00:00:21]} 13. Rfe1 {[%clk 00:08:16]} {[%emt
00:01:01]} e5 {[%clk 00:12:52]} {[%emt 00:00:05]} 14. h3 {[%clk 00:05:12]} Be6
{[%clk 00:12:50]} {[%emt 00:03:12]} 15. Rb1 {[%clk 00:05:01]} b6 {[%clk
00:12:39]} {[%emt 00:00:28]} 16. a3 {[%clk 00:05:01]} Rad8 {[%clk 00:12:39]} 17.
Rb5 {[%clk 00:05:01]} a6 {[%clk 00:12:39]} 18. Rbb1 {[%clk 00:05:01]} Nd5
{[%clk 00:12:11]} {[%emt 00:01:34]} 19. Bd2 {[%clk 00:02:53]} {[%emt 00:00:53]}
Nf4 {[%clk 00:12:04]} 20. Rbd1 {[%clk 00:02:53]} Nxe2+ {[%clk 00:12:04]} {[%emt
00:00:45]} 0-1

[Event "Jeux du Barreau 2019"]
[Site "Paris, France"]
[Date "2019.07.10"]
[Round "4.7"]
[White "Beaulier, Benjamin"]
[Black "Lanoe-Campbell, Luca"]
[Result "0-1"]
[TimeControl "15+3"]
[WhiteElo "1658"]
[BlackElo "1379"]

1. e4 {[%clk 00:15:05]} c6 {[%clk 00:15:04]} {[%emt 00:00:02]} 2. d4 {[%clk
00:15:04]} {[%emt 00:00:03]} d5 {[%clk 00:15:03]} {[%emt 00:00:04]} 3. Nc3
{[%clk 00:15:06]} {[%emt 00:00:02]} dxe4 {[%clk 00:15:04]} {[%emt 00:00:02]} 4.
Nxe4 {[%clk 00:15:07]} Bf5 {[%clk 00:14:57]} {[%emt 00:00:10]} 5. Ng3 {[%clk
00:15:09]} {[%emt 00:00:02]} Bg6 {[%clk 00:14:54]} {[%emt 00:00:05]} 6. h4
{[%clk 00:15:11]} {[%emt 00:00:01]} h6 {[%clk 00:14:39]} {[%emt 00:00:19]} 7.
Nf3 {[%clk 00:15:13]} {[%emt 00:00:01]} e6 {[%clk 00:13:48]} {[%emt 00:00:53]}
8. h5 {[%clk 00:15:06]} {[%emt 00:00:11]} Bh7 {[%clk 00:13:48]} {[%emt
00:00:03]} 9. Bd3 {[%clk 00:15:08]} Nf6 {[%clk 00:13:18]} {[%emt 00:00:32]} 10.
Bxh7 {[%clk 00:15:02]} {[%emt 00:00:10]} Nxh7 {[%clk 00:13:18]} {[%emt
00:00:03]} 11. Bf4 {[%clk 00:14:52]} {[%emt 00:00:14]} Qb6 {[%clk 00:12:26]}
{[%emt 00:00:54]} 12. O-O {[%clk 00:14:03]} {[%emt 00:00:53]} Be7 {[%clk
00:11:54]} {[%emt 00:00:34]} 13. Re1 {[%clk 00:13:44]} {[%emt 00:00:22]} O-O
{[%clk 00:11:50]} {[%emt 00:00:07]} 14. Qd2 {[%clk 00:12:25]} {[%emt 00:01:23]}
Nd7 {[%clk 00:10:23]} {[%emt 00:01:30]} 15. c3 {[%clk 00:11:38]} {[%emt
00:00:50]} Rad8 {[%clk 00:08:55]} {[%emt 00:01:30]} 16. Qc2 {[%clk 00:11:04]}
{[%emt 00:00:38]} Nhf6 {[%clk 00:08:26]} {[%emt 00:00:32]} 17. Be3 {[%clk
00:10:40]} {[%emt 00:00:27]} Qc7 {[%clk 00:07:41]} {[%emt 00:00:46]} 18. Qc1
{[%clk 00:09:33]} {[%emt 00:01:12]} Ng4 {[%clk 00:06:32]} {[%emt 00:01:12]} 19.
Bf4 {[%clk 00:08:08]} {[%emt 00:01:29]} Bd6 {[%clk 00:06:02]} {[%emt 00:00:32]}
20. Bxd6 {[%clk 00:07:43]} {[%emt 00:00:28]} Qxd6 {[%clk 00:06:03]} {[%emt
00:00:02]} 21. Ne4 {[%clk 00:06:12]} {[%emt 00:01:35]} Qc7 {[%clk 00:05:18]}
{[%emt 00:00:46]} 22. g3 {[%clk 00:05:16]} {[%emt 00:01:01]} c5 {[%clk
00:04:01]} {[%emt 00:01:20]} 23. Qc2 {[%clk 00:04:21]} {[%emt 00:00:58]} cxd4
{[%clk 00:03:14]} {[%emt 00:00:50]} 24. Nxd4 {[%clk 00:04:22]} {[%emt
00:00:02]} Nde5 {[%clk 00:02:25]} {[%emt 00:00:51]} 25. Rad1 {[%clk 00:03:41]}
{[%emt 00:00:44]} Rxd4 {[%clk 00:02:18]} {[%emt 00:00:09]} 26. Rxd4 {[%clk
00:03:36]} {[%emt 00:00:09]} Nf3+ {[%clk 00:02:19]} {[%emt 00:00:02]} 27. Kg2
{[%clk 00:03:26]} {[%emt 00:00:13]} Nxe1+ {[%clk 00:02:17]} {[%emt 00:00:04]}
0-1

[Event "Jeux du Barreau 2019"]
[Site "Paris, France"]
[Date "2019.07.10"]
[Round "4.8"]
[White "Leblic, Maximilien"]
[Black "Rabbe, Laurent"]
[Result "1-0"]
[TimeControl "15+3"]
[WhiteElo "1289"]
[BlackElo "1399"]

1. e4 {[%clk 00:15:01]} {[%emt 00:00:03]} e6 {[%clk 00:15:02]} {[%emt
00:00:04]} 2. d4 {[%clk 00:15:03]} {[%emt 00:00:02]} d5 {[%clk 00:15:02]}
{[%emt 00:00:03]} 3. e5 {[%clk 00:15:05]} {[%emt 00:00:01]} Nc6 {[%clk
00:14:57]} {[%emt 00:00:08]} 4. Nf3 {[%clk 00:15:06]} {[%emt 00:00:01]} Bb4+
{[%clk 00:14:47]} {[%emt 00:00:13]} 5. Bd2 {[%clk 00:14:55]} {[%emt 00:00:14]}
Nge7 {[%clk 00:14:39]} {[%emt 00:00:11]} 6. Bb5 {[%clk 00:14:54]} {[%emt
00:00:04]} a5 {[%clk 00:14:19]} {[%emt 00:00:23]} 7. a3 {[%clk 00:14:16]}
{[%emt 00:00:42]} Bxd2+ {[%clk 00:13:46]} {[%emt 00:00:35]} 8. Nbxd2 {[%clk
00:14:18]} {[%emt 00:00:01]} O-O {[%clk 00:13:43]} {[%emt 00:00:06]} 9. c4
{[%clk 00:14:14]} {[%emt 00:00:07]} Nf5 {[%clk 00:13:36]} {[%emt 00:00:10]} 10.
cxd5 {[%clk 00:13:47]} {[%emt 00:00:30]} Qxd5 {[%clk 00:13:09]} {[%emt
00:00:30]} 11. Bc4 {[%clk 00:13:07]} {[%emt 00:00:42]} Qd7 {[%clk 00:12:33]}
{[%emt 00:00:39]} 12. Nb3 {[%clk 00:12:38]} {[%emt 00:00:32]} b6 {[%clk
00:12:30]} {[%emt 00:00:07]} 13. O-O {[%clk 00:12:08]} {[%emt 00:00:33]} Ba6
{[%clk 00:11:10]} {[%emt 00:01:23]} 14. Bxa6 {[%clk 00:11:33]} {[%emt
00:00:37]} Rxa6 {[%clk 00:11:02]} {[%emt 00:00:12]} 15. Qd3 {[%clk 00:10:57]}
{[%emt 00:00:38]} a4 {[%clk 00:10:33]} {[%emt 00:00:33]} 16. Qxa6 {[%clk
00:10:27]} {[%emt 00:00:34]} axb3 {[%clk 00:10:11]} {[%emt 00:00:24]} 17. Qb5
{[%clk 00:08:33]} {[%emt 00:01:54]} Nfxd4 {[%clk 00:09:59]} {[%emt 00:00:18]}
18. Nxd4 {[%clk 00:08:31]} {[%emt 00:00:06]} Nxe5 {[%clk 00:09:00]} {[%emt
00:01:02]} 19. Qxe5 {[%clk 00:08:21]} {[%emt 00:00:13]} c5 {[%clk 00:08:54]}
{[%emt 00:00:09]} 20. Nf3 {[%clk 00:08:14]} {[%emt 00:00:10]} f6 {[%clk
00:08:43]} {[%emt 00:00:14]} 21. Qe3 {[%clk 00:08:01]} {[%emt 00:00:16]} Qd5
{[%clk 00:08:34]} {[%emt 00:00:11]} 22. Rad1 {[%clk 00:07:58]} {[%emt
00:00:07]} Qc4 {[%clk 00:08:18]} {[%emt 00:00:19]} 23. Nd2 {[%emt 00:00:07]}
Rd8 {[%clk 00:08:05]} {[%emt 00:00:13]} 24. Nxc4 {[%clk 00:07:54]} {[%emt
00:00:05]} Rb8 {[%clk 00:07:52]} {[%emt 00:00:16]} 25. Qxb3 {[%clk 00:07:55]}
{[%emt 00:00:03]} e5 {[%clk 00:07:51]} {[%emt 00:00:03]} 26. Nxb6+ {[%clk
00:07:50]} {[%emt 00:00:08]} Kf8 {[%clk 00:07:46]} {[%emt 00:00:08]} 27. Nd7+
{[%clk 00:07:47]} {[%emt 00:00:06]} Ke7 {[%clk 00:07:44]} {[%emt 00:00:06]} 28.
Qxb8 {[%clk 00:07:45]} {[%emt 00:00:05]} Ke6 {[%clk 00:07:38]} {[%emt
00:00:09]} 29. Qb6+ {[%clk 00:07:27]} {[%emt 00:00:21]} Kf5 {[%clk 00:07:38]}
{[%emt 00:00:03]} 30. Qxc5 {[%clk 00:07:22]} {[%emt 00:00:08]} h5 {[%clk
00:07:38]} {[%emt 00:00:03]} 31. Qe3 {[%clk 00:07:16]} {[%emt 00:00:09]} g5
{[%clk 00:07:34]} {[%emt 00:00:07]} 32. h3 {[%clk 00:07:08]} {[%emt 00:00:10]}
g4 {[%clk 00:07:25]} {[%emt 00:00:13]} 33. hxg4+ {[%clk 00:07:03]} {[%emt
00:00:08]} hxg4 {[%clk 00:07:25]} {[%emt 00:00:03]} 34. f3 {[%clk 00:06:56]}
{[%emt 00:00:10]} e4 {[%clk 00:07:17]} {[%emt 00:00:11]} 35. Qxe4+ {[%clk
00:06:55]} {[%emt 00:00:04]} Kg5 {[%clk 00:07:14]} {[%emt 00:00:05]} 36. Qxg4+
{[%clk 00:06:56]} {[%emt 00:00:03]} Kh6 {[%clk 00:07:11]} {[%emt 00:00:07]} 37.
Kf2 {[%clk 00:06:54]} {[%emt 00:00:05]} f5 {[%clk 00:07:07]} {[%emt 00:00:07]}
38. Rh1# {[%clk 00:06:55]} {[%emt 00:00:01]} 1-0

[Event "Jeux du Barreau 2019"]
[Site "Paris, France"]
[Date "2019.07.10"]
[Round "4.9"]
[White "Delage, Pierre Luc"]
[Black "Mangenot, Valentin"]
[Result "1-0"]
[TimeControl "15+3"]
[WhiteElo "1399"]
[BlackElo "1405"]

1. e4 {[%clk 00:15:03]} {[%emt 00:00:02]} e6 {[%clk 00:15:05]} {[%emt
00:00:02]} 2. Nf3 {[%clk 00:15:03]} {[%emt 00:00:03]} d5 {[%clk 00:15:02]}
{[%emt 00:00:05]} 3. exd5 {[%clk 00:14:57]} {[%emt 00:00:09]} exd5 {[%clk
00:15:04]} {[%emt 00:00:02]} 4. d4 {[%clk 00:14:51]} {[%emt 00:00:09]} Nf6
{[%clk 00:14:56]} {[%emt 00:00:12]} 5. Nc3 {[%clk 00:14:28]} {[%emt 00:00:26]}
Bg4 {[%clk 00:14:36]} {[%emt 00:00:23]} 6. Be2 {[%clk 00:14:25]} {[%emt
00:00:06]} Be7 {[%clk 00:14:04]} {[%emt 00:00:35]} 7. Ne5 {[%clk 00:14:04]}
{[%emt 00:00:23]} Bxe2 {[%clk 00:13:51]} {[%emt 00:00:16]} 8. Qxe2 {[%clk
00:13:58]} {[%emt 00:00:10]} Nbd7 {[%clk 00:13:48]} {[%emt 00:00:06]} 9. Qb5
{[%clk 00:12:43]} {[%emt 00:01:18]} O-O {[%clk 00:12:06]} {[%emt 00:01:44]} 10.
Nxd5 {[%clk 00:10:43]} {[%emt 00:02:03]} Nxe5 {[%clk 00:11:15]} {[%emt
00:00:54]} 11. Nxf6+ {[%clk 00:10:26]} {[%emt 00:00:20]} Bxf6 {[%clk 00:11:16]}
{[%emt 00:00:02]} 12. dxe5 {[%clk 00:10:09]} {[%emt 00:00:20]} Bxe5 {[%clk
00:10:48]} {[%emt 00:00:32]} 13. O-O {[%clk 00:09:42]} {[%emt 00:00:30]} Re8
{[%clk 00:09:22]} {[%emt 00:01:29]} 14. Qxb7 {[%clk 00:09:34]} {[%emt
00:00:11]} Qd6 {[%clk 00:08:53]} {[%emt 00:00:32]} 15. g3 {[%clk 00:08:53]}
{[%emt 00:00:44]} Reb8 {[%clk 00:08:45]} {[%emt 00:00:10]} 16. Qf3 {[%clk
00:08:16]} {[%emt 00:00:40]} a5 {[%clk 00:06:57]} {[%emt 00:01:52]} 17. c3
{[%clk 00:08:05]} {[%emt 00:00:14]} a4 {[%clk 00:06:50]} {[%emt 00:00:11]} 18.
a3 {[%clk 00:07:52]} {[%emt 00:00:16]} g6 {[%clk 00:06:19]} {[%emt 00:00:34]}
19. Bh6 {[%clk 00:07:23]} {[%emt 00:00:31]} Ra5 {[%clk 00:05:33]} {[%emt
00:00:49]} 20. Rab1 {[%clk 00:06:44]} {[%emt 00:00:43]} Rab5 {[%clk 00:04:18]}
{[%emt 00:01:18]} 21. Qe2 {[%clk 00:06:18]} {[%emt 00:00:28]} Bxc3 {[%clk
00:03:28]} {[%emt 00:00:53]} 22. Rbd1 {[%clk 00:05:44]} {[%emt 00:00:37]} Rxb2
{[%clk 00:02:44]} {[%emt 00:00:47]} 23. Qe3 {[%clk 00:03:53]} {[%emt 00:01:54]}
Bg7 {[%clk 00:02:10]} {[%emt 00:00:37]} 24. Rxd6 {[%clk 00:03:47]} {[%emt
00:00:09]} cxd6 {[%clk 00:02:12]} {[%emt 00:00:01]} 25. Bxg7 {[%clk 00:03:38]}
{[%emt 00:00:11]} Kxg7 {[%clk 00:02:14]} {[%emt 00:00:01]} 26. Qd4+ {[%clk
00:03:18]} {[%emt 00:00:23]} Kg8 {[%clk 00:02:13]} {[%emt 00:00:05]} 27. Qxa4
{[%clk 00:03:13]} {[%emt 00:00:07]} 1-0

[Event "Jeux du Barreau 2019"]
[Site "Paris, France"]
[Date "2019.07.10"]
[Round "4.10"]
[White "De Vareilles-Sommier, Ferdinand"]
[Black "Lepetit, Jean Pierre"]
[Result "0-1"]
[TimeControl "15+3"]
[WhiteElo "1399"]
[BlackElo "1078"]

1. e4 {[%clk 00:15:04]} {[%emt 00:00:01]} e5 {[%clk 00:15:05]} {[%emt
00:00:02]} 2. Nf3 {[%clk 00:15:06]} Nc6 {[%clk 00:15:07]} {[%emt 00:00:01]} 3.
Bb5 {[%clk 00:15:08]} {[%emt 00:00:01]} a6 {[%clk 00:15:08]} {[%emt 00:00:02]}
4. Ba4 {[%clk 00:15:10]} {[%emt 00:00:01]} Nf6 {[%clk 00:15:10]} {[%emt
00:00:02]} 5. Nc3 {[%clk 00:14:56]} {[%emt 00:00:16]} Be7 {[%clk 00:15:11]}
{[%emt 00:00:02]} 6. Bxc6 {[%clk 00:14:55]} {[%emt 00:00:04]} dxc6 {[%clk
00:15:01]} {[%emt 00:00:12]} 7. Nxe5 {[%clk 00:14:52]} {[%emt 00:00:06]} O-O
{[%clk 00:14:51]} {[%emt 00:00:13]} 8. a3 {[%clk 00:14:36]} {[%emt 00:00:20]}
Re8 {[%clk 00:14:42]} {[%emt 00:00:12]} 9. d4 {[%clk 00:13:54]} {[%emt
00:00:45]} b5 {[%clk 00:14:11]} {[%emt 00:00:34]} 10. Nxc6 {[%clk 00:13:30]}
{[%emt 00:00:27]} Qd7 {[%clk 00:13:44]} {[%emt 00:00:30]} 11. Ne5 {[%clk
00:13:16]} {[%emt 00:00:18]} Qe6 {[%clk 00:12:44]} {[%emt 00:01:03]} 12. O-O
{[%clk 00:12:09]} {[%emt 00:01:09]} Bb7 {[%clk 00:12:44]} {[%emt 00:00:03]} 13.
Re1 {[%clk 00:11:37]} {[%emt 00:00:35]} Rad8 {[%clk 00:12:07]} {[%emt
00:00:40]} 14. Bf4 {[%clk 00:09:38]} {[%emt 00:02:02]} c5 {[%clk 00:11:36]}
{[%emt 00:00:34]} 15. d5 {[%clk 00:09:23]} {[%emt 00:00:19]} Qb6 {[%clk
00:10:52]} {[%emt 00:00:47]} 16. Be3 {[%clk 00:07:41]} {[%emt 00:01:40]} Bd6
{[%clk 00:10:13]} {[%emt 00:00:47]} 17. Nd3 {[%clk 00:06:39]} {[%emt 00:01:04]}
Nxe4 {[%clk 00:09:48]} {[%emt 00:00:29]} 18. Nxe4 {[%clk 00:05:17]} {[%emt
00:01:26]} Rxe4 {[%clk 00:09:38]} {[%emt 00:00:12]} 19. b4 {[%clk 00:05:15]}
{[%emt 00:00:05]} Bxd5 {[%clk 00:08:18]} {[%emt 00:01:24]} 20. bxc5 {[%clk
00:05:03]} {[%emt 00:00:15]} Bxh2+ {[%clk 00:07:52]} {[%emt 00:00:28]} 21. Kxh2
{[%clk 00:04:52]} {[%emt 00:00:14]} Rh4+ {[%clk 00:07:47]} {[%emt 00:00:09]} 22.
Kg1 {[%clk 00:03:25]} {[%emt 00:01:30]} Qg6 {[%clk 00:07:48]} {[%emt 00:00:02]}
23. g3 {[%clk 00:03:11]} {[%emt 00:00:16]} Rh1# {[%clk 00:07:49]} {[%emt
00:00:02]} 0-1